bitfinex-derivatives/quotes_ETHF0:USTF0_20251107
["timestamp","ask_amount","ask_price","bid_price","bid_amount"]
[1762482276757,0.49266894,3311.6,3311.5,3.69726]
[1762482277062,0.49266894,3311.6,3311.1,3.2078]
[1762482277063,0.63039,3311.4,3311.1,3.2078]
[1762482277361,0.63039,3311.4,3311.2,0.4895]
[1762482277552,0.48949,3311.3,3311.2,0.4895]
[1762482277862,0.4895,3311.2,3311.1,3.2078]
[1762482279265,0.73588,3310.7,3310.6,0.0045307]
[1762482279760,0.48968,3310.0,3309.9,3.69749]
[1762482280060,0.48968,3310.0,3309.9,3.2078]
[1762482280262,0.48968,3310.0,3309.9,3.21030425]
[1762482281862,0.73598,3310.0,3309.9,3.21030425]
[1762482283366,0.73598,3310.0,3309.9,0.00250425]
[1762482284462,0.48968,3310.0,3309.9,0.00250425]
[1762482286457,0.1432,3310.2,3309.9,0.00250425]
[1762482286663,0.1432,3310.2,3309.9,0.49219425]
[1762482287159,0.1432,3310.2,3310.1,0.48967]
[1762482287363,0.0045307,3310.3,3310.2,0.48965]
[1762482287862,0.48968,3310.0,3309.9,3.21030425]
[1762482288266,0.73598,3310.0,3309.9,3.21030425]
[1762482288462,0.48968,3310.0,3309.9,3.70000425]
[1762482288856,0.1432,3310.2,3309.9,3.21030425]
[1762482289055,0.63285,3310.2,3310.1,0.48967]
[1762482289667,0.48968,3310.1,3309.9,3.69998425]
[1762482289867,0.48968,3310.1,3310.0,0.48968]
[1762482290268,0.73598,3310.0,3309.9,3.21030425]
[1762482290962,0.73598,3310.0,3309.9,3.70000425]
[1762482291163,0.73598,3310.0,3309.9,3.21030425]
[1762482291364,0.48968,3310.0,3309.9,3.70000425]
[1762482292067,0.73598,3310.0,3309.9,0.00250425]
[1762482293281,0.1432,3310.2,3309.9,0.00250425]
[1762482293471,0.1432,3310.2,3309.9,3.21030425]
[1762482293773,0.1432,3310.2,3310.1,0.48967]
[1762482293972,0.48968,3310.0,3309.9,3.21030425]
[1762482294369,0.48968,3310.0,3309.9,3.70000425]
[1762482294568,0.1432,3310.2,3309.9,3.21030425]
[1762482295172,0.48967,3310.1,3310.0,0.48967]
[1762482295370,0.63285,3310.2,3310.1,0.48967]
[1762482296071,0.48967,3310.1,3309.9,3.21030425]
[1762482296473,0.1432,3310.2,3309.9,3.21030425]
[1762482296668,0.1432,3310.2,3310.1,0.48967]
[1762482297568,0.0045307,3310.3,3310.2,0.48965]
[1762482297969,0.4941707,3310.3,3310.2,0.48965]
[1762482298873,0.0045307,3310.3,3310.2,0.48965]
[1762482300574,0.0045307,3310.3,3309.9,3.21030425]
[1762482300575,0.1432,3310.2,3309.9,3.70001425]
[1762482300782,0.0045307,3310.3,3310.2,0.48966]
[1762482300972,0.1432,3310.8,3310.7,0.48959]
[1762482301274,0.1432,3311.0,3310.7,3.2078]
[1762482301475,0.48956,3310.9,3310.7,3.69739]
[1762482301777,0.63275,3311.0,3310.9,0.48956]
[1762482302075,0.48957,3310.9,3310.7,3.2078]
[1762482302274,0.48957,3310.8,3310.7,3.69738]
[1762482302770,0.48957,3310.8,3310.7,3.2078]
[1762482302974,0.1432,3311.0,3310.3,3.2078]
[1762482303371,0.48963,3310.4,3310.3,3.69745]
[1762482303880,0.1432,3311.0,3310.3,3.2078]
[1762482304175,0.1432,3311.0,3310.9,0.48956]
[1762482304573,0.1432,3311.0,3310.7,3.2078]
[1762482304777,0.73587,3310.8,3310.3,3.2078]
[1762482305075,0.48959,3310.7,3310.3,3.2078]
[1762482305376,0.4896,3310.7,3310.5,0.48962]
[1762482305679,0.48958,3310.8,3310.7,0.48959]
[1762482306371,0.1432,3311.0,3310.9,0.48956]
[1762482306880,0.48956,3310.9,3310.7,3.2078]
[1762482307183,0.48958,3310.8,3310.7,3.2078]
[1762482307477,0.48958,3310.8,3310.7,3.69739]
[1762482308069,0.63276,3311.0,3310.8,0.48956]
[1762482308265,0.63276,3311.0,3310.7,3.2078]
[1762482308678,0.1432,3311.0,3310.9,0.48956]
[1762482308875,0.63039,3311.4,3311.2,0.48952]
[1762482309066,0.63039,3311.4,3311.3,0.4895]
[1762482309376,3.2078,3311.5,3311.4,0.48949]
[1762482309767,0.1432,3312.0,3311.5,0.48947]
[1762482309973,0.1432,3312.0,3311.9,0.48941]
[1762482310181,0.6326,3312.0,3311.8,3.2078]
[1762482310579,0.2333,3311.3,3311.1,2.14478137]
[1762482310782,0.1389,3311.4,3310.9,5.84214137]
[1762482310783,0.48955,3311.1,3310.9,5.84214137]
[1762482310975,0.49232484,3311.1,3310.9,5.84214137]
[1762482311283,0.49232484,3311.1,3310.9,3.69736]
[1762482311485,0.00277484,3311.1,3310.9,3.69736]
[1762482311981,0.00277484,3311.1,3311.0,2.14478137]
[1762482312182,0.00277484,3311.1,3310.9,3.69736]
[1762482312683,0.0045307,3311.3,3311.2,0.48951]
[1762482312872,0.0045307,3311.3,3311.2,2.63217388]
[1762482313680,0.48954,3311.0,3310.9,5.35046388]
[1762482313882,0.48954,3311.0,3310.9,3.2078]
[1762482314184,0.48952,3311.2,3311.0,0.48954]
[1762482314985,0.72284,3311.0,3310.9,3.2078]
[1762482315791,0.86177,3310.8,3310.7,0.0045307]
[1762482316775,0.1389,3310.8,3310.7,0.0045307]
[1762482317183,0.3722,3310.8,3310.7,0.0045307]
[1762482317786,0.1389,3310.8,3310.7,0.0045307]
[1762482318082,0.3722,3310.8,3310.7,0.0045307]
[1762482320287,0.86177,3310.8,3310.7,0.0045307]
[1762482322786,0.72296,3310.2,3310.1,3.2078]
[1762482322989,0.86189,3310.0,3309.9,0.00250425]
[1762482323307,0.72308,3309.4,3309.3,3.2078]
[1762482323485,0.1389,3309.5,3309.3,3.2078]
[1762482323685,0.1389,3309.5,3309.3,3.69759]
[1762482323889,0.62867,3309.5,3309.3,3.2078]
[1762482324089,0.62867,3309.5,3309.3,3.21099732]
[1762482326894,0.2333,3309.4,3309.3,3.21099732]
[1762482328592,0.72308,3309.4,3309.3,3.21099732]
[1762482329191,0.1389,3309.5,3309.4,0.48978]
[1762482329390,0.48974,3309.7,3309.3,3.21099732]
[1762482329590,0.48972,3309.9,3309.7,0.48973]
[1762482329783,0.1389,3310.0,3309.8,0.48972]
[1762482329987,0.62861,3310.0,3309.8,0.48972]
[1762482330188,0.48971,3309.9,3309.8,0.48972]
[1762482330492,0.1389,3310.0,3309.3,3.21099732]
[1762482330493,0.72308,3309.4,3309.3,3.21099732]
[1762482331592,0.72308,3309.4,3309.3,0.00319732]
[1762482332390,0.48976,3309.5,3309.3,0.00319732]
[1762482332590,0.1389,3310.0,3309.4,0.48978]
[1762482332896,0.1389,3310.0,3309.3,3.21099732]
[1762482333384,0.48978,3309.4,3309.3,3.70078732]
[1762482333782,0.1389,3310.0,3309.4,0.48977]
[1762482333988,0.48976,3309.6,3309.5,0.48976]
[1762482334186,0.1389,3310.0,3309.3,3.21099732]
[1762482334187,0.48978,3309.4,3309.3,3.21099732]
[1762482334382,0.1389,3310.0,3309.3,3.21099732]
[1762482334582,0.48974,3309.7,3309.5,0.48975]
[1762482334795,0.1389,3310.0,3309.3,3.21099732]
[1762482334994,0.62861,3310.0,3309.8,3.2078]
[1762482335189,0.1389,3310.0,3309.9,0.48971]
[1762482335391,0.1389,3310.5,3310.3,0.48964]
[1762482335696,0.62852,3310.5,3310.3,3.69744]
[1762482336289,0.48961,3310.6,3310.4,0.48962]
[1762482337196,3.21609536,3311.3,3310.3,3.2078]
[1762482337393,0.48956,3311.0,3310.7,3.2078]
[1762482337601,0.48956,3310.9,3310.7,3.2078]
[1762482338092,0.2397,3310.4,3309.9,3.2078]
[1762482338306,0.48969,3310.0,3309.9,3.2078]
[1762482338492,0.48964,3310.4,3310.3,0.48964]
[1762482338693,3.21609536,3311.3,3310.4,0.48963]
[1762482339491,0.48962,3310.6,3310.4,0.48963]
[1762482339900,3.21609536,3311.3,3310.7,0.48959]
[1762482340096,0.48955,3311.0,3310.8,0.48957]
[1762482340293,0.1408,3310.8,3310.7,3.2078]
[1762482340994,0.00829536,3311.3,3310.7,3.2078]
[1762482340995,0.00829536,3311.3,3311.1,0.48952]
[1762482341298,0.48954,3311.0,3310.9,0.0045307]
[1762482341504,0.48952,3311.2,3311.0,0.48954]
[1762482341801,0.00829536,3311.3,3311.2,0.48951]
[1762482342002,0.00829536,3311.3,3311.2,3.69731]
[1762482343701,0.48936,3312.3,3312.1,0.48937]
[1762482343904,3.2078,3312.9,3312.2,0.48936]
[1762482344695,0.48934,3312.4,3312.2,0.00254186]
[1762482345002,0.2437,3312.3,3312.2,0.00254186]
[1762482345496,0.2437,3312.0,3311.9,3.2078]
[1762482345696,0.1408,3311.4,3311.3,3.69729]
[1762482345897,0.1408,3311.4,3311.3,3.2078]
[1762482346502,0.1408,3311.4,3311.3,3.21037487]
[1762482348693,0.3845,3311.4,3311.3,3.21037487]
[1762482349596,0.1408,3310.2,3309.8,3.2078]
[1762482350001,0.4897,3310.0,3309.8,3.2078]
[1762482350702,0.49213436,3310.0,3309.8,3.21078395]
[1762482350902,0.49213436,3310.0,3309.8,0.00298395]
[1762482351104,0.2437,3309.9,3309.8,0.00298395]
[1762482352205,3.69992436,3310.0,3309.8,0.00298395]
[1762482355411,0.00243436,3310.0,3309.9,0.2547]
[1762482355911,0.49213436,3310.0,3309.8,3.21078395]
[1762482356413,0.49213436,3310.0,3309.8,3.70050395]
[1762482356609,0.49213436,3310.0,3309.8,0.00298395]
[1762482356908,0.2437,3309.9,3309.8,0.00298395]
[1762482360311,0.7334,3309.9,3309.8,0.00298395]
[1762482362823,0.2437,3309.9,3309.8,0.00298395]
[1762482363120,0.00243436,3310.0,3309.9,0.74441]
[1762482363419,0.49212436,3310.0,3309.9,0.74441]
[1762482363617,0.49212436,3310.0,3309.9,0.2547]
[1762482364221,0.49212436,3310.0,3309.9,0.74441]
[1762482364420,0.49212436,3310.0,3309.9,0.2547]
[1762482364623,0.00243436,3310.0,3309.9,0.73041]
[1762482364920,0.49213436,3310.0,3309.9,0.73041]
[1762482365121,0.00243436,3310.0,3309.9,4.53341]
[1762482365622,0.49213436,3310.0,3309.9,4.53341]
[1762482366618,0.49213436,3310.0,3309.9,4.0437]
[1762482367416,3.3486,3311.4,3310.8,0.2407]
[1762482367920,3.3486,3311.4,3310.5,3.3503]
[1762482368111,0.48954,3311.2,3311.1,0.73024]
[1762482368321,0.4895,3311.4,3311.2,0.48951]
[1762482368627,0.4895,3311.3,3311.2,0.73022]
[1762482369428,0.00365624,3311.4,3311.3,0.7302]
[1762482370928,0.00365624,3311.4,3311.3,3.938]
[1762482371628,0.00365624,3311.4,3311.3,3.2078]
[1762482371825,0.00365624,3311.4,3310.5,3.3503]
[1762482371826,0.14865624,3311.4,3310.5,3.3503]
[1762482372026,0.00365624,3311.4,3311.2,0.73022]
[1762482372430,0.48954,3311.1,3311.0,0.2407]
[1762482373531,0.48954,3311.1,3310.9,3.2078]
[1762482374623,0.48958,3310.8,3310.7,0.2407]
[1762482375435,3.2078,3311.3,3310.6,4.2926]
[1762482375436,0.48959,3310.7,3310.6,3.803]
[1762482375631,0.72911,3310.6,3310.5,3.2078]
[1762482375931,0.48964,3310.4,3310.1,3.2078]
[1762482376122,0.48966,3310.3,3310.2,0.48967]
[1762482376728,0.48963,3310.5,3310.1,3.2078]
[1762482377627,0.48963,3310.5,3310.4,0.48964]
[1762482377828,0.48959,3310.8,3310.4,0.2407]
[1762482378030,0.48958,3310.8,3310.7,0.48959]
[1762482378529,3.21145624,3311.4,3310.7,0.2407]
[1762482378733,0.48953,3311.2,3311.1,0.2407]
[1762482379035,0.48957,3310.9,3310.8,0.73028]
[1762482380629,3.3528,3311.0,3310.2,5.93864566]
[1762482380836,3.3528,3311.0,3310.1,3.2078]
[1762482381033,0.48967,3310.2,3310.1,3.2078]
[1762482382035,0.72917,3310.2,3310.1,3.2078]
[1762482382628,0.145,3310.5,3309.8,0.00298395]
[1762482382629,0.72921,3309.9,3309.8,0.00298395]
[1762482384628,0.48986,3308.9,3308.8,5.58414566]
[1762482384828,0.48986,3308.9,3308.8,3.4485]
[1762482385229,0.48995,3308.3,3308.2,2.13564566]
[1762482385430,3.3528,3309.0,3307.6,0.49005]
[1762482385431,0.2395,3308.0,3307.6,5.34344566]
[1762482385631,0.2395,3308.0,3307.6,0.00220879]
[1762482385632,3.93734,3307.7,3307.6,0.00220879]
[1762482390741,3.2078,3307.7,3307.6,0.00220879]
[1762482390936,0.00285797,3308.0,3307.8,0.49002]
[1762482391136,0.49002,3307.9,3307.6,0.49225879]
[1762482391333,0.00285797,3308.0,3307.8,0.49002]
[1762482392438,0.00285797,3308.0,3307.6,0.00220879]
[1762482392642,0.49001,3307.9,3307.8,0.2407]
[1762482393036,0.00285797,3308.0,3307.9,0.2407]
[1762482393844,0.00285797,3308.0,3307.9,3.4485]
[1762482395342,0.0045307,3308.1,3308.0,0.49]
[1762482395547,0.0045307,3308.1,3308.0,0.7345]
[1762482395742,0.49,3308.0,3307.9,3.2078]
[1762482395942,0.0045307,3308.1,3307.6,0.00220879]
[1762482396135,0.0045307,3308.1,3308.0,0.2445]
[1762482396541,0.00779788,3308.1,3308.0,8.2445]
[1762482396844,3.2078,3309.6,3309.0,0.0798]
[1762482397042,0.48978,3309.5,3309.4,0.2445]
[1762482397242,3.2078,3310.0,3309.5,0.48977]
[1762482397646,0.48974,3309.7,3309.6,0.2445]
[1762482397945,0.00263464,3309.7,3309.3,0.0045307]
[1762482398147,0.48978,3309.5,3309.3,0.4943207]
[1762482398840,0.49238464,3309.7,3309.5,0.48977]
[1762482399148,0.00263464,3309.7,3309.6,3.4394]
[1762482399648,0.00263464,3309.7,3309.6,3.5814]
[1762482402042,3.3482,3310.8,3310.4,0.48964]
[1762482402043,0.48961,3310.7,3310.4,0.48964]
[1762482402347,0.48962,3310.6,3310.5,0.2316]
[1762482402547,0.48968,3310.2,3310.0,0.4897]
[1762482402747,0.48967,3310.3,3310.0,0.2316]
[1762482402946,0.49337532,3310.3,3310.0,0.23384618]
[1762482404650,0.49337532,3310.3,3310.1,0.48968]
[1762482404843,0.73508,3310.1,3310.0,0.00224618]
[1762482405044,0.00370532,3310.3,3310.0,0.00224618]
[1762482405245,0.48967,3310.2,3310.0,0.00224618]
[1762482405847,0.00370532,3310.3,3310.1,0.2316]
[1762482406245,0.00370532,3310.3,3310.0,0.00224618]
[1762482406246,0.73508,3310.1,3310.0,0.00224618]
[1762482406447,0.48979,3309.4,3309.3,3.2123307]
[1762482407548,0.48979,3309.4,3309.3,3.21610601]
[1762482408245,0.73519,3309.4,3309.3,3.21610601]
[1762482408657,0.48977,3309.5,3309.4,0.2316]
[1762482409247,0.1487,3310.0,3309.3,3.21610601]
[1762482409444,0.00370532,3310.3,3310.0,0.3053]
[1762482409644,0.00370532,3310.3,3310.2,0.2316]
[1762482409852,0.00370532,3310.3,3309.8,0.48972]
[1762482410149,0.48969,3310.1,3309.7,3.2078]
[1762482410354,0.00370532,3310.3,3310.2,0.72127]
[1762482410753,0.00370532,3310.3,3310.2,4.07647]
[1762482411449,0.1487,3311.5,3310.7,0.48959]
[1762482411450,3.2078,3311.4,3310.7,0.48959]
[1762482411955,0.48956,3311.0,3310.8,0.48958]
[1762482412455,0.49272082,3311.0,3310.8,0.48958]
[1762482412650,0.00316082,3311.0,3310.8,0.48958]
[1762482412955,0.00316082,3311.0,3310.9,0.2316]
[1762482414855,0.48956,3310.9,3310.7,0.48959]
[1762482415056,0.00316082,3311.0,3310.8,0.48957]
[1762482415255,0.00316082,3311.0,3310.9,0.2316]
[1762482416553,0.48959,3310.7,3310.6,3.2078]
[1762482416758,0.48963,3310.5,3310.2,3.2078]
[1762482416959,3.21096082,3311.0,3310.6,0.4896]
[1762482417749,3.21096082,3311.0,3310.2,3.3501]
[1762482417963,0.00316082,3311.0,3310.9,0.2316]
[1762482419563,0.48945,3311.7,3311.6,0.2316]
[1762482420456,0.49336913,3311.7,3311.6,0.2316]
[1762482420652,0.48949,3311.4,3311.3,3.4439307]
[1762482420858,0.88359,3311.4,3311.3,0.0045307]
[1762482421051,3.2078,3311.5,3311.4,0.2316]
[1762482421251,3.2078,3311.5,3311.4,0.3053]
[1762482421452,3.2078,3311.5,3311.4,0.2316]
[1762482421656,0.48949,3311.4,3311.3,0.0045307]
[1762482422057,3.2078,3311.5,3311.3,0.4940307]
[1762482422266,3.2078,3311.5,3311.4,0.2316]
[1762482422662,0.48949,3311.4,3311.3,0.0045307]
[1762482422867,0.88359,3311.4,3311.3,0.0045307]
[1762482423566,0.48959,3310.8,3310.6,0.48961]
[1762482423755,3.2078,3311.1,3310.3,3.4394]
[1762482423959,3.2078,3311.1,3310.5,0.48962]
[1762482424157,0.4896,3310.7,3310.5,0.48962]
[1762482424360,0.48956,3311.0,3310.3,3.2078]
[1762482424667,0.0045307,3311.0,3310.9,0.2316]
[1762482424865,0.0045307,3311.0,3310.9,0.72116]
[1762482426161,0.4940807,3311.0,3310.9,0.2316]
[1762482426362,0.1502,3310.8,3310.5,0.48962]
[1762482426563,0.48962,3310.6,3310.5,0.48962]
[1762482426762,0.0045307,3311.0,3310.3,3.2123307]
[1762482426961,0.0045307,3311.0,3310.9,0.73666]
[1762482427364,0.0045307,3311.0,3310.7,3.69738]
[1762482427670,0.0045307,3311.0,3310.9,0.48956]
[1762482427867,0.0045307,3311.0,3310.9,0.73666]
[1762482428568,0.0045307,3311.0,3310.9,3.94446]
[1762482428775,3.07e-05,3311.0,3310.9,11.94446]
[1762482428969,3.07e-05,3311.0,3310.9,14.08010566]
[1762482429173,3.07e-05,3311.0,3310.9,11.94446]
[1762482429564,3.07e-05,3311.0,3310.9,5.59242688]
[1762482429768,3.07e-05,3311.0,3310.9,3.2078]
[1762482430473,0.4896,3310.7,3310.6,0.2471]
[1762482430866,0.48961,3310.6,3310.5,0.48962]
[1762482431166,0.48961,3310.6,3310.5,0.73672]
[1762482431367,0.4895907,3311.0,3310.8,0.48957]
[1762482431566,3.07e-05,3311.0,3310.8,0.48957]
[1762482431768,3.07e-05,3311.0,3310.8,0.62297]
[1762482431969,3.07e-05,3311.0,3310.9,3.2078]
[1762482433570,3.07e-05,3311.0,3310.9,22.65032688]
[1762482433971,3.07e-05,3311.0,3310.9,14.65032688]
[1762482434171,3.07e-05,3311.0,3310.9,12.5128]
[1762482434374,3.07e-05,3311.0,3310.9,20.5128]
[1762482434982,3.07e-05,3311.0,3310.9,21.00236]
[1762482435581,3.07e-05,3311.0,3310.9,23.13988688]
[1762482436577,3.07e-05,3311.0,3310.9,21.00236]
[1762482437177,3.07e-05,3311.0,3310.9,23.13988688]
[1762482437381,3.07e-05,3311.0,3310.9,21.00236]
[1762482438482,3.07e-05,3311.0,3310.9,13.00236]
[1762482439182,3.07e-05,3311.0,3310.9,3.69736]
[1762482439484,3.07e-05,3311.0,3310.9,12.99936]
[1762482442676,0.1502307,3311.0,3310.6,2.63107131]
[1762482442885,0.1502307,3311.0,3310.4,3.2078]
[1762482442886,0.1502307,3311.0,3310.5,9.301]
[1762482443083,0.1502307,3311.0,3310.7,0.48959]
[1762482443483,0.48962,3310.5,3310.4,2.14146131]
[1762482443679,0.48962,3310.5,3310.3,0.0045307]
[1762482443680,0.2442,3310.4,3310.3,0.0045307]
[1762482443880,3.452,3310.4,3310.3,0.0045307]
[1762482444081,0.73393,3309.8,3309.7,9.301]
[1762482444589,0.2442,3309.7,3309.6,3.2078]
[1762482446881,0.73399,3309.4,3309.3,0.00830601]
[1762482447083,3.94179,3309.4,3309.3,0.00830601]
[1762482447290,0.48991,3308.6,3308.4,3.2078]
[1762482447687,0.48991,3308.6,3308.4,3.69773]
[1762482448285,0.00247385,3308.6,3308.5,0.73702]
[1762482448585,0.0045307,3308.8,3308.4,3.24497282]
[1762482448586,0.0045307,3308.8,3308.7,0.73699]
[1762482448988,0.0045307,3308.8,3308.7,0.2471]
[1762482449694,0.00785207,3308.8,3308.7,0.2471]
[1762482451293,0.00785207,3308.8,3308.4,3.21077282]
[1762482451494,0.48991,3308.6,3308.4,3.21077282]
[1762482452086,0.2442,3308.5,3308.4,0.00297282]
[1762482452280,0.49005,3307.7,3307.2,3.2078]
[1762482452486,0.49005,3307.6,3307.4,0.49007]
[1762482452884,3.2078,3308.0,3307.2,3.6979]
[1762482453087,0.1502,3307.8,3307.3,0.49009]
[1762482453285,0.1502,3307.8,3307.3,0.00298844]
[1762482453286,0.49009,3307.4,3307.3,0.00298844]
[1762482453489,0.73429,3307.4,3307.3,0.00298844]
[1762482455588,0.2513,3307.3,3307.2,0.0045307]
[1762482456387,0.2513,3307.3,3307.2,0.00829978]
[1762482456594,3.2078,3307.6,3307.2,0.00829978]
[1762482457487,0.49008,3307.4,3307.2,0.00829978]
[1762482458484,0.2513,3307.3,3307.2,0.00829978]
[1762482462298,0.49026,3306.2,3306.0,3.2078]
[1762482462501,0.49033,3305.8,3305.6,3.2078]
[1762482463291,0.2365,3305.7,3305.6,0.00368535]
[1762482464207,6.2869,3305.7,3305.6,0.00368535]
[1762482464393,0.72699,3304.6,3304.4,3.2078]
[1762482464597,0.72699,3304.6,3304.1,0.49056]
[1762482464598,3.93479,3304.6,3304.1,0.49056]
[1762482464797,0.49053,3304.4,3304.0,3.2078]
[1762482464997,0.49045,3304.9,3304.0,3.2078]
[1762482465197,0.1461,3305.4,3304.4,3.2078]
[1762482465405,0.1461,3305.4,3304.8,0.49046]
[1762482465605,0.49043,3305.1,3304.8,0.49046]
[1762482465998,0.49041,3305.2,3305.0,0.49043]
[1762482466201,0.1461,3305.4,3305.0,0.49043]
[1762482467109,0.49035,3305.6,3305.4,0.49037]
[1762482467408,0.49041,3305.2,3305.0,3.2078]
[1762482467603,0.49038,3305.4,3305.0,3.2078]
[1762482467799,0.49039,3305.3,3305.1,0.49042]
[1762482468403,0.4904,3305.3,3305.0,3.2078]
[1762482468812,3.2078,3305.7,3305.1,0.49042]
[1762482469001,0.4904,3305.3,3305.1,0.49042]
[1762482469396,0.49038,3305.4,3305.2,0.4904]
[1762482469602,3.2078,3305.7,3305.0,3.69822]
[1762482470103,0.49035,3305.6,3305.0,3.2078]
[1762482470302,0.00252763,3305.8,3305.5,0.49036]
[1762482470502,0.00252763,3305.8,3305.6,0.49034]
[1762482470710,0.49284763,3305.8,3305.7,0.2299]
[1762482470904,0.49036,3305.6,3305.4,3.2078]
[1762482471304,0.49284763,3305.8,3305.4,3.2078]
[1762482472005,0.00252763,3305.8,3305.6,0.49034]
[1762482472209,0.00252763,3305.8,3305.4,3.2078]
[1762482472512,3.2078,3305.7,3305.1,0.49042]
[1762482472712,0.49039,3305.4,3305.0,3.2078]
[1762482472908,0.49039,3305.4,3305.3,0.2299]
[1762482473109,3.2078,3305.7,3305.0,3.2078]
[1762482473305,0.49042,3305.2,3305.1,0.49042]
[1762482473505,0.49037,3305.5,3305.3,0.49038]
[1762482474408,0.49284763,3305.8,3305.7,0.2299]
[1762482475807,0.00252763,3305.8,3305.7,0.2299]
[1762482476014,0.49035,3305.6,3305.5,3.69815]
[1762482476201,0.49035,3305.6,3305.5,3.2078]
[1762482476612,0.49043,3305.1,3305.0,3.92814]
[1762482477409,0.49043,3305.1,3305.0,3.4377]
[1762482478404,3.2078,3305.7,3305.0,3.4377]
[1762482478405,0.49039,3305.3,3305.1,0.2299]
[1762482478612,0.49039,3305.3,3305.2,0.2299]
[1762482479108,3.2078,3305.7,3305.1,0.49041]
[1762482479109,0.49041,3305.2,3305.1,0.49041]
[1762482479311,3.2078,3305.7,3305.0,3.2078]
[1762482479519,0.00252763,3305.8,3305.7,0.2299]
[1762482479713,0.00252763,3305.8,3305.7,0.72023]
[1762482480715,0.00252763,3305.8,3305.5,0.2299]
[1762482480914,0.49036,3305.5,3305.4,3.69818]
[1762482481115,0.49035,3305.7,3305.6,0.49034]
[1762482481614,0.00252763,3305.8,3305.4,3.2078]
[1762482481816,0.00252763,3305.8,3305.6,0.49035]
[1762482481817,0.49035,3305.7,3305.6,0.49035]
[1762482482121,0.49036,3305.5,3305.4,3.2078]
[1762482482322,0.49042,3305.2,3305.1,0.49042]
[1762482482524,0.49042,3305.1,3305.0,3.2078]
[1762482482721,0.49048,3304.7,3304.6,3.21233762]
[1762482483417,0.72698,3304.7,3304.6,3.21233762]
[1762482484422,0.72698,3304.7,3304.6,0.00453762]
[1762482484823,0.2365,3304.7,3304.6,0.00453762]
[1762482485024,3.2078,3305.2,3304.7,0.49048]
[1762482485221,3.2078,3305.2,3304.6,0.00453762]
[1762482485930,0.49035,3305.6,3305.2,0.4904]
[1762482486223,3.2078,3305.7,3305.1,0.49042]
[1762482486422,3.2078,3305.7,3305.4,0.49037]
[1762482486626,0.49035,3305.6,3305.5,0.49036]
[1762482486822,3.2078,3305.7,3305.5,0.73366]
[1762482487023,0.00252763,3305.8,3305.7,0.73363]
[1762482487832,0.00252763,3305.8,3305.7,0.2433]
[1762482488035,0.49284763,3305.8,3305.6,3.69814]
[1762482488331,0.00252763,3305.8,3305.7,0.2433]
[1762482490121,2.763e-05,3305.8,3305.7,0.2433]
[1762482490327,0.00453762,3306.0,3305.9,0.2433]
[1762482491234,0.00768416,3306.0,3305.9,0.2433]
[1762482493141,4.4336085,3307.2,3306.4,0.2433]
[1762482493142,0.49022,3306.5,3306.4,0.2433]
[1762482493325,0.2554,3306.1,3305.6,3.2078]
[1762482493637,0.49033,3305.7,3305.3,0.49039]
[1762482493837,0.49031,3305.9,3305.6,0.2433]
[1762482494131,3.2078,3307.0,3306.2,0.2433]
[1762482494339,0.49033,3305.8,3305.6,3.69813]
[1762482494829,0.49033,3305.8,3305.6,3.2078]
[1762482495337,0.49033,3305.7,3305.6,3.69814]
[1762482496235,3.2078,3306.2,3305.9,0.4903]
[1762482496431,3.69806,3306.2,3306.1,0.73357]
[1762482496630,0.49026,3306.2,3306.1,0.2433]
[1762482496929,0.49033,3305.8,3305.4,3.21233762]
[1762482497125,3.2078,3306.4,3305.4,3.35833762]
[1762482497433,3.2078,3306.4,3306.0,0.73358]
[1762482497640,3.2078,3306.4,3306.2,0.49026]
[1762482497641,0.49024,3306.3,3306.2,0.49026]
[1762482498545,3.2078,3306.8,3305.8,3.2078]
[1762482498839,0.49029,3306.1,3306.0,0.49029]
[1762482499234,0.1501,3306.6,3305.8,3.69812]
[1762482499434,0.1501,3306.6,3306.0,0.49028]
[1762482499640,0.1501,3306.6,3306.1,0.49027]
[1762482499834,0.1501,3306.6,3305.9,0.49029]
[1762482500034,0.1501,3306.6,3305.8,3.2078]
[1762482500234,0.1501,3306.6,3306.3,0.49024]
[1762482501037,3.2078,3306.8,3306.4,0.49023]
[1762482501243,0.49018,3306.7,3306.6,0.73349]
[1762482501442,3.2078,3307.6,3307.4,0.49007]
[1762482501646,3.2078,3308.0,3307.9,0.2433]
[1762482502543,3.21169015,3308.0,3307.9,0.24668491]
[1762482502745,0.25929015,3308.0,3307.9,0.00338491]
[1762482503049,0.49014,3307.0,3306.8,3.69796]
[1762482503247,0.49014,3307.0,3306.8,3.2078]
[1762482503546,0.49019,3306.7,3306.4,3.2078]
[1762482503746,0.4902,3306.6,3306.4,3.2078]
[1762482503944,0.4902,3306.6,3306.4,3.2116013]
[1762482504247,0.49016,3306.9,3306.4,3.2116013]
[1762482504433,3.2078,3307.3,3306.4,3.2116013]
[1762482504835,0.4902,3306.6,3306.4,3.2116013]
[1762482505248,0.2554,3306.5,3306.4,0.0038013]
[1762482509042,3.698,3306.6,3306.4,0.0038013]
[1762482509349,0.4902,3306.6,3306.4,0.0038013]
[1762482509845,3.2078,3307.0,3306.6,0.49019]
[1762482510142,0.49016,3306.9,3306.8,0.73346]
[1762482510643,0.49016,3306.9,3306.8,0.2433]
[1762482510836,0.49016,3306.9,3306.6,0.49019]
[1762482511037,3.2078,3307.0,3306.9,0.2433]
[1762482511242,3.2078,3307.6,3306.6,0.49019]
[1762482511645,3.2078,3307.6,3306.7,0.49018]
[1762482512145,3.2078,3307.6,3306.4,3.2116013]
[1762482512849,0.49019,3306.7,3306.6,0.49019]
[1762482513040,0.49017,3306.9,3306.7,0.49018]
[1762482513938,0.1501,3307.8,3306.4,5.35306261]
[1762482513939,3.2078,3307.7,3306.8,0.73347]
[1762482514749,3.2078,3307.7,3306.8,3.2078]
[1762482515045,3.2078,3307.7,3307.3,0.4901]
[1762482515439,3.2078,3307.7,3307.4,0.49008]
[1762482515749,0.49006,3307.6,3307.5,0.49007]